fUSD/lending_fUSD_20240513
["ID","MTS","AMOUNT","RATE_DAILY","PERIOD"]
[326953891,1715643038658,-204.39093866,0.0001299,2]
[326953892,1715643038667,-508.7140254,0.00012996,2]
[326953893,1715643038678,-736.71457745,0.00012996,2]
[326953894,1715643038731,-1067.48450525,0.00012996,2]
[326953895,1715643038744,-155.10967691,0.00012997,2]
[326953896,1715643038755,-720.42320635,0.00012997,2]
[326953897,1715643038765,-203.59005569,0.00012997,2]
[326953898,1715643038776,-289.70312432,0.00012998,2]
[326953899,1715643038786,-155.0,0.00012998,2]
[326953900,1715643038797,-1783.4481079,0.00012998,2]
[326953901,1715643038810,-214.85002778,0.00012998,2]
[326953902,1715643038823,-175.36118501,0.00012998,2]
[326953904,1715643040600,-1611.54677146,0.000129,2]
[326953906,1715643040612,-292.92047372,0.00012998,2]
[326953908,1715643040627,-2902.73280966,0.00012998,2]
[326953909,1715643040638,-167.7191493,0.00012998,2]
[326953911,1715643040649,-706.5074025,0.00012998,2]
[326953912,1715643040660,-1028.0712263,0.00012998,2]
[326953914,1715643040674,-4239.98861599,0.00012998,2]
[326953916,1715643040685,-155.0,0.00012998,2]
[326953917,1715643040696,-323.79914288,0.00012998,2]
[326953918,1715643040707,-274.96185603,0.00012998,2]
[326953919,1715643040719,-159.6029597,0.00012998,2]
[326953920,1715643040730,-177.68872852,0.00012998,2]
[326953921,1715643040743,-2771.51682636,0.00012998,2]
[326953922,1715643040756,-1132.6290311,0.00012998,2]
[326953923,1715643040770,-276.0,0.00012998,2]
[326953924,1715643040845,-3028.59085022,0.00012998,2]
[326953925,1715643040858,-155.85062154,0.00012998,2]
[326953926,1715643040869,-372.66134927,0.00012998,2]
[326953927,1715643040881,-208.17791052,0.00012998,2]
[326953928,1715643040892,-155.09721873,0.00012998,2]
[326953929,1715643040903,-709.85225591,0.00012998,2]
[326953930,1715643040915,-156.0846489,0.00012998,2]
[326953931,1715643040926,-239.03568109,0.00012998,2]
[326953932,1715643040937,-4270.37766422,0.00012998,2]
[326953933,1715643040947,-305.72421467,0.00012998,2]
[326953934,1715643040958,-155.0,0.00012998,2]
[326953935,1715643040968,-155.54694532,0.00012998,2]
[326953936,1715643040979,-317.4316254,0.00012998,2]
[326953937,1715643040991,-262.75159511,0.00012998,2]
[326953938,1715643041002,-157.51876589,0.00012998,2]
[326953939,1715643041012,-558.92801314,0.00012998,2]
[326953940,1715643041022,-206.95664151,0.00012998,2]
[326953941,1715643041033,-237.17351593,0.00012998,2]
[326953942,1715643041045,-155.0,0.00012998,2]
[326953943,1715643041055,-2183.14103205,0.00012998,2]
[326953944,1715643041066,-202.98530437,0.00012998,2]
[326953945,1715643041076,-157.051408,0.00012998,2]
[326953946,1715643041087,-500.0,0.00012998,2]
[326953947,1715643041098,-387.25217581,0.00012998,2]
[326953948,1715643041110,-559.59,0.00012998,2]
[326953949,1715643041120,-500.0,0.00012998,2]
[326953950,1715643041131,-8658.01,0.00012998,2]
[326953951,1715643041142,-1224.88,0.00012998,2]
[326953952,1715643041152,-500.0,0.00012998,2]
[326953953,1715643041163,-1552.54585109,0.00012999,2]
[326953954,1715643041174,-155.0,0.00012999,2]
[326953955,1715643041185,-1034.6412428,0.00012999,3]
[326953956,1715643041196,-559.59,0.00012999,2]
[326953957,1715643041207,-559.59,0.00012999,2]
[326953958,1715643041218,-173.00104724,0.00012999,2]
[326953959,1715643041232,-386.58895276,0.00012999,2]
[326953960,1715643041246,-559.59,0.00012999,2]
[326953961,1715643041256,-559.59,0.00012999,2]
[326953962,1715643041267,-559.59,0.00012999,2]
[326953963,1715643041277,-559.59,0.00012999,2]
[326953964,1715643041288,-559.59,0.00012999,2]
[326953965,1715643041299,-559.59,0.00012999,2]
[326953966,1715643041310,-559.59,0.00012999,2]
[326953967,1715643041320,-559.59,0.00012999,2]
[326953968,1715643041331,-559.59,0.00012999,2]
[326953969,1715643041341,-559.59,0.00012999,2]
[326953970,1715643041352,-559.59,0.00012999,2]
[326953971,1715643041363,-559.59,0.00012999,2]
[326953972,1715643041373,-559.59,0.00012999,2]
[326953973,1715643041384,-559.59,0.00012999,2]
[326953974,1715643041396,-559.59,0.00012999,2]
[326953975,1715643041406,-559.59,0.00012999,2]
[326953976,1715643041420,-559.59,0.00012999,2]
[326953977,1715643041431,-559.59,0.00012999,2]
[326953978,1715643041441,-559.59,0.00012999,2]
[326953979,1715643041452,-559.81436072,0.00012999,2]
[326953980,1715643041462,-8658.01,0.00012999,2]
[326953981,1715643041472,-8658.01,0.00012999,2]
[326953982,1715643041482,-3945.64058192,0.00012999,2]
[326953983,1715643041498,-3573.359008,0.00012999,2]
[326953984,1715643041511,-1139.01041008,0.00012999,2]
[326953985,1715643041521,-2031.31019524,0.00012999,2]
[326953986,1715643041534,-2801.81458229,0.00012999,2]
[326953987,1715643041547,-290.82,0.00012999,2]
[326953988,1715643041559,-250.5,0.00012999,2]
[326953989,1715643041572,-3283.56522247,0.00012999,2]
[326953990,1715643041583,-295.86593959,0.00012999,2]
[326953991,1715643041594,-2011.22327998,0.00012999,2]
[326953992,1715643041606,-290.77689149,0.00012999,2]
[326953993,1715643041618,-555.29,0.00012999,2]
[326953995,1715643043070,-1088.3299892,0.00012999,2]
[326953996,1715643043115,-354.72788086,0.00012999,2]
[326953997,1715643043127,-348.49967892,0.00012999,2]
[326953998,1715643043138,-3713.29633996,0.00012999,2]
[326953999,1715643043148,-7792.54797144,0.00012999,2]
[326954000,1715643043160,-865.46202856,0.00012999,2]
[326954001,1715643043170,-954.5379692,0.00012999,2]
[326954002,1715643043181,-766.09690138,0.00012999,2]
[326954003,1715643043192,-512.64868118,0.00012999,2]
[326954004,1715643043204,-4614.3142878,0.00012999,2]
[326954005,1715643043215,-509.999985,0.00012999,2]
[326954006,1715643043227,-1300.41217544,0.00012999,2]
[326954007,1715643043236,-8658.01,0.00012999,2]
[326954008,1715643043245,-8658.01,0.00012999,2]
[326954009,1715643043254,-8658.01,0.00012999,2]
[326954010,1715643043263,-4287.16803099,0.00012999,2]
[326954011,1715643043275,-2532.92399336,0.00012999,2]
[326954019,1715643043562,-336.95839996,0.00012999,2]
[326954021,1715643043574,-412.4274999,0.00012999,2]
[326954022,1715643043587,-438.02775,0.00012999,2]
[326954023,1715643043599,-650.50432579,0.00012999,2]
[326954024,1715643043608,-2406.92255421,0.00012999,2]
[326954025,1715643043620,-1798.07131388,0.00012999,2]
[326954026,1715643043631,-1895.6822114,0.00012999,2]
[326954027,1715643043643,-259.81768672,0.00012999,2]
[326954028,1715643043655,-632.40225982,0.00012999,2]
[326954029,1715643043666,-1468.79524653,0.00012999,2]
[326954030,1715643043678,-196.31872744,0.00012999,2]
[326954031,1715643043688,-391.63818982,0.00012999,2]
[326954032,1715643043717,-6700.5,0.00012999,2]
[326954033,1715643043729,-1565.87181018,0.00012999,2]
[326954034,1715643043739,-400.77896044,0.00012999,2]
[326954035,1715643043750,-935.21484251,0.00012999,2]
[326954036,1715643043761,-1401.6000012,0.00012999,2]
[326954037,1715643043772,-2221.03993,0.00012999,2]
[326954038,1715643043784,-865.00999,0.00012999,2]
[326954039,1715643043795,-2834.36627585,0.00012999,2]
[326954040,1715643043806,-8658.01,0.00012999,2]
[326954041,1715643043816,-8658.01,0.00012999,2]
[326954042,1715643043826,-8658.01,0.00012999,2]
[326954043,1715643043836,-8658.01,0.00012999,2]
[326954044,1715643043846,-3756.79757792,0.00012999,2]
[326954045,1715643043938,-4901.21242208,0.00012999,2]
[326954046,1715643043948,-3256.29510627,0.00012999,2]
[326954047,1715643043963,-757.45058583,0.00012999,2]
[326954048,1715643043976,-409.79455518,0.00012999,2]
[326954049,1715643043989,-1250.0,0.00012999,2]
[326954050,1715643044001,-400.0,0.00012999,2]
[326954051,1715643044012,-337.65,0.00012999,2]
[326954052,1715643044023,-2246.81975272,0.00012999,2]
[326954053,1715643044032,-8658.01,0.00012999,2]
[326954054,1715643044042,-8658.01,0.00012999,2]
[326954055,1715643044051,-8658.13,0.00012999,2]
[326954056,1715643044061,-1224.88,0.00012999,2]
[326954057,1715643044070,-1224.88,0.00012999,2]
[326954058,1715643044079,-1224.88,0.00012999,2]
[326954059,1715643044089,-1224.88,0.00012999,2]
[326954060,1715643044099,-1224.88,0.00012999,2]
[326954061,1715643044111,-1224.88,0.00012999,2]
[326954062,1715643044121,-1224.88,0.00012999,2]
[326954063,1715643044132,-1224.88,0.00012999,2]
[326954064,1715643044141,-1224.88,0.00012999,2]
[326954065,1715643044151,-1224.88,0.00012999,2]
[326954066,1715643044160,-1224.88,0.00012999,2]
[326954067,1715643044169,-1224.88,0.00012999,2]
[326954068,1715643044179,-1224.88,0.00012999,2]
[326954069,1715643044188,-1224.88,0.00012999,2]
[326954070,1715643044198,-1224.88,0.00012999,2]
[326954071,1715643044208,-1224.88,0.00012999,2]
[326954073,1715643044218,-1224.88,0.00012999,2]
[326954075,1715643044227,-1224.88,0.00012999,2]
[326954077,1715643044236,-1224.88,0.00012999,2]
[326954078,1715643044246,-1224.88,0.00012999,2]
[326954079,1715643044255,-1224.88,0.00012999,2]
[326954080,1715643044265,-1224.88,0.00012999,2]
[326954081,1715643044275,-1224.99,0.00012999,2]
[326954082,1715643044285,-536.0,0.00013,2]
[326954083,1715643044295,-475769.44811309,0.00013,2]
[326954084,1715643044305,-591151.64615877,0.00013,2]
[326954085,1715643046340,-1013.92560801,0.00013,2]
[326954086,1715643046352,-626.5,0.00013,2]
[326954087,1715643046363,-35517.92085846,0.00013,2]
[326954088,1715643046374,-4100.0,0.00013,2]
[326954089,1715643046384,-2678.34680619,0.00013,2]
[326954090,1715643046395,-310.00217,0.00013,2]
[326954091,1715643046406,-15258.31412161,0.00013,2]
[326954092,1715643046422,-994.19092379,0.00013,2]
[326954093,1715643046433,-291.2772942,0.00013,2]
[326954094,1715643046443,-3462.62223728,0.00013,2]
[326954095,1715643046499,-3352.69443134,0.00013,2]
[326954096,1715643046513,-37181.62119711,0.00013,2]
[326954097,1715643046526,-2376.57285479,0.00013,2]
[326954098,1715643046537,-500.0,0.00013,2]
[326954099,1715643046588,-1556.7999962,0.00013,2]
[326954100,1715643046658,-369.77169256,0.00013,2]
[326954101,1715643046669,-527.62,0.00013,2]
[326954102,1715643046680,-605.50432414,0.00013,2]
[326954103,1715643046712,-409.20495899,0.00013,2]
[326954104,1715643046723,-314.23016228,0.00013,2]
[326954106,1715643071758,346.6840201,0.00011291,2]
[326954107,1715643074166,298.53572696,0.00011291,2]
[326954109,1715643401500,1778.88948375,0.00025,120]
[326954110,1715643632873,17601.26,0.00011365,2]
[326954112,1715643706519,400.0,0.00011318,2]
[326954113,1715643764622,6949.23040499,0.00011318,2]
[326954114,1715643784547,23566.86461831,0.00011318,2]
[326954115,1715643806886,32916.77,0.00011316,2]
[326954116,1715643817107,2000.0,8.766e-05,2]
[326954117,1715643818778,2000.0,9.588e-05,2]
[326954118,1715643821163,2000.0,0.0001041,2]
[326954119,1715643823180,2000.0,0.00011232,2]
[326954120,1715643870067,160.0,0.00011317,2]
[326954121,1715644020385,310.1274,0.00011374,2]
[326954122,1715644061301,200.0,0.00011054,2]
[326954123,1715644093642,510.0,0.0003,120]
[326954139,1715644232352,-155.0,0.00011427,2]
[326954140,1715644232362,-162.48925202,0.00011428,2]
[326954141,1715644232372,-30.57178798,0.00011428,2]
[326954142,1715644232407,-124.42821202,0.00011428,2]
[326954143,1715644232419,-155.0,0.00011428,2]
[326954144,1715644232431,-155.0,0.00011428,2]
[326954145,1715644232440,-262.89486358,0.00011428,2]
[326954146,1715644232451,-236.16899118,0.00011428,2]
[326954147,1715644232465,-5323.45659083,0.00011428,2]
[326954148,1715644232474,-4593.76073509,0.00011429,2]
[326954149,1715644232484,-3026.24071623,0.0001143,2]
[326954150,1715644232493,-360.75080323,0.0001143,2]
[326954151,1715644232502,-161.90796137,0.0001143,2]
[326954152,1715644232511,-1265.57242787,0.00011431,2]
[326954153,1715644232530,-338.36,0.00011431,2]
[326954154,1715644232550,-925.04343273,0.00011431,2]
[326954155,1715644232562,-522.13920169,0.00011431,2]
[326954174,1715644238326,-1223.28423132,0.00011431,2]
[326954176,1715644238335,-3681.30416868,0.00011432,2]
[326954177,1715644238348,-1058.58004755,0.00011432,2]
[326954178,1715644238358,-151.96,0.00011442,2]
[326954179,1715644238366,-150.0,0.0001146,2]
[326954180,1715644238377,-156.01248712,0.00011464,2]
[326954181,1715644238386,-151.96,0.00011476,2]
[326954182,1715644238396,-151.96,0.00011509,2]
[326954183,1715644238407,-151.96,0.00011542,2]
[326954184,1715644238417,-151.96,0.00011575,2]
[326954185,1715644238426,-294.15,0.00011608,2]
[326954186,1715644238437,-150.99,0.00011608,2]
[326954187,1715644238447,-151.96,0.00011608,2]
[326954188,1715644238457,-2214.99916283,0.00011627,2]
[326954189,1715644238469,-577.69928284,0.00011627,2]
[326954190,1715644238497,-1479.33155433,0.00011627,2]
[326954191,1715644238506,-151.96,0.00011641,2]
[326954192,1715644238515,-151.96,0.00011674,2]
[326954193,1715644238526,-151.96,0.00011707,2]
[326954194,1715644238536,-151.96,0.00011741,2]
[326954195,1715644238545,-151.96,0.00011774,2]
[326954196,1715644238555,-500.0,0.0001178,2]
[326954197,1715644238564,-151.96,0.00011807,2]
[326954198,1715644238574,-151.96,0.0001184,2]
[326954199,1715644238584,-151.96,0.00011873,2]
[326954200,1715644238594,-151.96,0.00011906,2]
[326954201,1715644238604,-151.96,0.00011939,2]
[326954202,1715644238613,-151.96,0.00011972,2]
[326954203,1715644238624,-151.96,0.00012006,2]
[326954204,1715644238633,-151.96,0.00012039,2]
[326954205,1715644238643,-685.76902713,0.00012154,2]
[326954206,1715644238652,-872.0,0.0001216,2]
[326954207,1715644238663,-2185.73081459,0.00012362,2]
[326954208,1715644238673,-499.99,0.00012363,2]
[326954209,1715644238682,-6491.76588584,0.00012384,2]
[326954210,1715644238693,-387.946132,0.00012394,2]
[326954211,1715644238704,-163.544013,0.00012394,2]
[326954213,1715644238714,-9642.078636,0.00012394,2]
[326954215,1715644238723,-283.771809,0.00012394,2]
[326954217,1715644238732,-7177.662911,0.00012394,2]
[326954219,1715644238742,-155.959454,0.00012394,2]
[326954221,1715644238751,-3249.341014,0.00012394,2]
[326954223,1715644238760,-387.946132,0.00012549,2]
[326954225,1715644238770,-283.771809,0.00012549,2]
[326954227,1715644238779,-9642.078636,0.00012549,2]
[326954229,1715644238789,-7177.662911,0.00012549,2]
[326954231,1715644238798,-155.959454,0.00012549,2]
[326954234,1715644238807,-3249.341014,0.00012549,2]
[326954237,1715644238818,-163.544013,0.000126,2]
[326954239,1715644238828,-500.0,0.00012602,2]
[326954241,1715644238837,-500.0,0.00012602,2]
[326954243,1715644238846,-500.0,0.00012602,2]
[326954245,1715644238856,-675.6887,0.00012699,2]
[326954247,1715644238865,-387.946132,0.00012704,2]
[326954249,1715644238874,-283.771809,0.00012704,2]
[326954251,1715644238884,-9642.078636,0.00012704,2]
[326954253,1715644238893,-7177.662911,0.00012704,2]
[326954255,1715644238902,-155.959454,0.00012704,2]
[326954257,1715644238911,-3249.341014,0.00012704,2]
[326954259,1715644238920,-400.0,0.00012733,2]
[326954261,1715644238928,-256.32786092,0.00012738,2]
[326954263,1715644238937,-124035.61072853,0.00012799,2]
[326954265,1715644238949,-6608.20407147,0.00012799,2]
[326954267,1715644238958,-163.544013,0.00012807,2]
[326954269,1715644238967,-1562.7671594,0.00012813,2]
[326954271,1715644238975,-323.94264134,0.00012845,2]
[326954273,1715644238984,-167.68,0.00012846,2]
[326954275,1715644238993,-323.94264134,0.00012854,2]
[326954277,1715644239002,-387.946132,0.00012859,2]
[326954279,1715644239011,-283.771809,0.00012859,2]
[326954281,1715644239020,-9642.078636,0.00012859,2]
[326954283,1715644239030,-7177.662911,0.00012859,2]
[326954285,1715644239040,-155.959454,0.00012859,2]
[326954287,1715644239050,-3249.341014,0.00012859,2]
[326954289,1715644239060,-323.94264134,0.00012863,2]
[326954291,1715644239069,-215.48273435,0.00012867,2]
[326954293,1715644239079,-252.02181648,0.00012868,2]
[326954295,1715644239088,-323.94264134,0.00012872,2]
[326954296,1715644239097,-2000.0,0.00012876,2]
[326954298,1715644239107,-500.0,0.00012876,2]
[326954326,1715644239348,-500.0,0.00012876,2]
[326954328,1715644239358,-500.0,0.00012876,2]
[326954330,1715644239369,-510.83726922,0.00012876,2]
[326954332,1715644239379,-500.0,0.00012876,2]
[326954334,1715644239388,-500.0,0.00012876,2]
[326954336,1715644239397,-500.0,0.00012876,2]
[326954338,1715644239407,-500.0,0.00012876,2]
[326954340,1715644239416,-500.0,0.00012876,2]
[326954342,1715644239425,-500.0,0.00012876,2]
[326954344,1715644239434,-553.68,0.00012876,2]
[326954346,1715644239443,-596.95,0.00012876,2]
[326954348,1715644239452,-500.0,0.00012876,2]
[326954350,1715644239462,-500.0,0.00012876,2]
[326954352,1715644239471,-629.29,0.00012876,2]
[326954354,1715644239480,-500.0,0.00012876,2]
[326954356,1715644239490,-500.0,0.00012876,2]
[326954358,1715644239499,-500.0,0.00012876,2]
[326954360,1715644239508,-500.0,0.00012876,2]
[326954362,1715644239517,-500.0,0.00012876,2]
[326954364,1715644239527,-500.0,0.00012876,2]
[326954366,1715644239537,-536.32,0.00012876,2]
[326954368,1715644239546,-500.0,0.00012876,2]
[326954370,1715644239555,-500.0,0.00012876,2]
[326954372,1715644239565,-500.75,0.00012876,2]
[326954374,1715644239575,-633.11,0.00012876,2]
[326954376,1715644239585,-576.24,0.00012876,2]
[326954378,1715644239594,-514.75256186,0.00012876,2]
[326954380,1715644239605,-500.0,0.00012876,2]
[326954382,1715644239615,-500.0,0.00012876,2]
[326954384,1715644239624,-500.0,0.00012876,2]
[326954386,1715644239633,-500.0,0.00012876,2]
[326954388,1715644239643,-500.0,0.00012876,2]
[326954390,1715644239653,-500.0,0.00012876,2]
[326954392,1715644239663,-500.0,0.00012876,2]
[326954395,1715644239672,-500.0,0.00012876,2]
[326954397,1715644239682,-500.0,0.00012876,2]
[326954399,1715644239691,-500.0,0.00012876,2]
[326954401,1715644239701,-500.0,0.00012876,2]
[326954402,1715644239711,-500.0,0.00012876,2]
[326954404,1715644239720,-500.0,0.00012876,2]
[326954407,1715644239730,-500.0,0.00012876,2]
[326954409,1715644239740,-515.33,0.00012876,2]
[326954411,1715644239750,-500.0,0.00012876,2]
[326954413,1715644239759,-500.0,0.00012876,2]
[326954415,1715644239769,-500.0,0.00012876,2]
[326954417,1715644239779,-500.0,0.00012876,2]
[326954418,1715644239789,-500.0,0.00012876,2]
[326954421,1715644239799,-618.86,0.00012876,2]
[326954423,1715644239809,-500.0,0.00012876,2]
[326954424,1715644239823,-500.0,0.00012876,2]
[326954426,1715644239832,-500.0,0.00012876,2]
[326954428,1715644239841,-500.0,0.00012876,2]
[326954430,1715644239851,-500.0,0.00012876,2]
[326954432,1715644239861,-507.59618952,0.00012876,2]
[326954434,1715644239871,-150.0,0.00012876,2]
[326954437,1715644239882,-500.0,0.00012876,2]
[326954439,1715644239892,-500.0,0.00012876,2]
[326954441,1715644239904,-510.12754335,0.00012876,2]
[326954443,1715644239915,-500.0,0.00012876,2]
[326954444,1715644239924,-500.0,0.00012876,2]
[326954446,1715644239933,-500.0,0.00012876,2]
[326954448,1715644239943,-500.0,0.00012876,2]
[326954450,1715644239953,-500.0,0.00012876,2]
[326954452,1715644239962,-500.0,0.00012876,2]
[326954455,1715644239972,-500.0,0.00012876,2]
[326954456,1715644239982,-503.59514021,0.00012876,2]
[326954458,1715644239991,-500.0,0.00012876,2]
[326954461,1715644240002,-500.0,0.00012876,2]
[326954463,1715644240013,-570.66405251,0.00012876,2]
[326954465,1715644240023,-500.0,0.00012876,2]
[326954467,1715644240033,-500.0,0.00012876,2]
[326954469,1715644240043,-500.0,0.00012876,2]
[326954471,1715644240053,-500.0,0.00012876,2]
[326954473,1715644240064,-500.0,0.00012876,2]
[326954475,1715644240073,-500.0,0.00012876,2]
[326954477,1715644240082,-500.0,0.00012876,2]
[326954479,1715644240092,-500.0,0.00012876,2]
[326954481,1715644240102,-500.0,0.00012876,2]
[326954483,1715644240111,-500.0,0.00012876,2]
[326954485,1715644240121,-500.0,0.00012876,2]
[326954487,1715644240131,-500.0,0.00012876,2]
[326954488,1715644240140,-500.0,0.00012876,2]
[326954491,1715644240150,-500.0,0.00012876,2]
[326954494,1715644240159,-500.0,0.00012876,2]
[326954496,1715644240169,-500.0,0.00012876,2]
[326954499,1715644240179,-500.0,0.00012876,2]
[326954503,1715644240190,-500.0,0.00012876,2]
[326954506,1715644240200,-500.0,0.00012876,2]
[326954508,1715644240209,-500.0,0.00012876,2]
[326954510,1715644240221,-505.07161165,0.00012876,2]
[326954512,1715644240231,-500.0,0.00012876,2]
[326954514,1715644240241,-500.0,0.00012876,2]
[326954515,1715644240250,-500.0,0.00012876,2]
[326954517,1715644240260,-500.0,0.00012876,2]
[326954520,1715644240270,-500.0,0.00012876,2]
[326954521,1715644240280,-500.0,0.00012876,2]
[326954523,1715644240290,-500.0,0.00012876,2]
[326954526,1715644240300,-500.0,0.00012876,2]
[326954528,1715644240310,-500.0,0.00012876,2]
[326954529,1715644240320,-500.0,0.00012876,2]
[326954532,1715644240329,-500.0,0.00012876,2]
[326954534,1715644240339,-500.0,0.00012876,2]
[326954536,1715644240349,-500.0,0.00012876,2]
[326954538,1715644240358,-500.0,0.00012876,2]
[326954540,1715644240368,-500.0,0.00012876,2]
[326954543,1715644240378,-508.30684515,0.00012876,2]
[326954545,1715644240389,-567.26,0.00012876,2]
[326954547,1715644240399,-500.0,0.00012876,2]
[326954549,1715644240408,-500.0,0.00012876,2]
[326954551,1715644240418,-500.0,0.00012876,2]
[326954552,1715644240428,-508.96002296,0.00012876,2]
[326954554,1715644240437,-500.0,0.00012876,2]
[326954556,1715644240447,-644.49,0.00012876,2]
[326954558,1715644240457,-500.0,0.00012876,2]
[326954559,1715644240466,-500.0,0.00012876,2]
[326954561,1715644240476,-500.0,0.00012876,2]
[326954563,1715644240485,-500.0,0.00012876,2]
[326954566,1715644240495,-500.0,0.00012876,2]
[326954567,1715644240505,-500.0,0.00012876,2]
[326954569,1715644240515,-632.21608176,0.00012876,2]
[326954571,1715644240525,-500.0,0.00012876,2]
[326954573,1715644240535,-500.0,0.00012876,2]
[326954575,1715644240545,-500.0,0.00012876,2]
[326954577,1715644240554,-500.0,0.00012876,2]
[326954579,1715644240564,-503.81600379,0.00012876,2]
[326954581,1715644240574,-732.13,0.00012876,2]
[326954583,1715644240583,-500.0,0.00012876,2]
[326954585,1715644240593,-500.0,0.00012876,2]
[326954587,1715644240603,-500.0,0.00012876,2]
[326954589,1715644240613,-535.28,0.00012876,2]
[326954591,1715644240624,-500.0,0.00012876,2]
[326954593,1715644240634,-513.29482011,0.00012876,2]
[326954595,1715644240643,-500.0,0.00012876,2]
[326954597,1715644240653,-500.0,0.00012876,2]
[326954599,1715644240663,-500.0,0.00012876,2]
[326954601,1715644240673,-500.0,0.00012876,2]
[326954603,1715644240683,-500.0,0.00012876,2]
[326954605,1715644240692,-500.0,0.00012876,2]
[326954607,1715644240702,-500.0,0.00012876,2]
[326954609,1715644240711,-500.0,0.00012876,2]
[326954611,1715644240721,-500.0,0.00012876,2]
[326954613,1715644240730,-500.0,0.00012876,2]
[326954615,1715644240741,-499.65430419,0.00012876,2]
[326954617,1715644240751,-500.0,0.00012876,2]
[326954619,1715644240761,-500.0,0.00012876,2]
[326954621,1715644240770,-500.0,0.00012876,2]
[326954623,1715644240781,-500.0,0.00012876,2]
[326954625,1715644240791,-578.43,0.00012876,2]
[326954627,1715644240801,-500.0,0.00012876,2]
[326954629,1715644240810,-998.36,0.00012876,2]
[326954631,1715644240823,-500.0,0.00012876,2]
[326954633,1715644240832,-500.0,0.00012876,2]
[326954635,1715644240842,-500.0,0.00012876,2]
[326954637,1715644240851,-500.0,0.00012876,2]
[326954639,1715644240860,-2104.49,0.00012876,2]
[326954641,1715644240870,-502.9,0.00012876,2]
[326954643,1715644240879,-500.0,0.00012876,2]
[326954645,1715644240889,-500.0,0.00012876,2]
[326954647,1715644240900,-500.0,0.00012876,2]
[326954648,1715644240910,-500.0,0.00012876,2]
[326954649,1715644240920,-500.0,0.00012876,2]
[326954650,1715644240930,-500.0,0.00012876,2]
[326954651,1715644240940,-500.0,0.00012876,2]
[326954652,1715644240950,-500.0,0.00012876,2]
[326954653,1715644240959,-500.0,0.00012876,2]
[326954654,1715644240969,-507.62,0.00012876,2]
[326954655,1715644240978,-500.0,0.00012876,2]
[326954656,1715644240987,-500.0,0.00012876,2]
[326954657,1715644240996,-500.0,0.00012876,2]
[326954658,1715644241005,-500.0,0.00012876,2]
[326954659,1715644241014,-500.0,0.00012876,2]
[326954660,1715644241022,-500.0,0.00012876,2]
[326954661,1715644241032,-500.0,0.00012876,2]
[326954662,1715644241041,-500.0,0.00012876,2]
[326954663,1715644241050,-635.16,0.00012876,2]
[326954664,1715644241059,-500.0,0.00012876,2]
[326954665,1715644241068,-500.0,0.00012876,2]
[326954666,1715644241077,-500.0,0.00012876,2]
[326954667,1715644241086,-500.0,0.00012876,2]
[326954668,1715644241095,-509.84840084,0.00012876,2]
[326954670,1715644241104,-500.0,0.00012876,2]
[326954671,1715644241114,-500.0,0.00012876,2]
[326954672,1715644241124,-500.0,0.00012876,2]
[326954673,1715644241133,-500.0,0.00012876,2]
[326954674,1715644241142,-565.47,0.00012876,2]
[326954675,1715644241153,-500.0,0.00012876,2]
[326954676,1715644241162,-500.0,0.00012876,2]
[326954677,1715644241171,-500.0,0.00012876,2]
[326954678,1715644241181,-500.0,0.00012876,2]
[326954679,1715644241190,-500.0,0.00012876,2]
[326954680,1715644241199,-500.0,0.00012876,2]